fUSD/lending_fUSD_20260304
["ID","MTS","AMOUNT","RATE_DAILY","PERIOD"]
[407648190,1772610140508,-5000.0,0.000132,2]
[407648191,1772610140531,-304.64057267,0.000132,2]
[407648192,1772610140555,-250.0,0.000132,2]
[407648193,1772610140578,-500.0,0.000132,2]
[407648194,1772610140601,-192.64,0.00013277,2]
[407648195,1772610140631,-7504.0,0.000133,2]
[407648196,1772610140654,-290.62771964,0.00013302,2]
[407648197,1772610140679,-250.0,0.0001342,2]
[407648198,1772610140700,-500.0,0.0001342,2]
[407648199,1772610140723,-150.0,0.00013448,2]
[407648200,1772610140750,-150.0,0.00013471,2]
[407648201,1772610140772,-3230.95,0.00013491,2]
[407648202,1772610140795,-150.0,0.00013532,2]
[407648203,1772610140818,-2137.8,0.00013533,2]
[407648204,1772610140839,-200.0,0.00013699,2]
[407648205,1772610140861,-161.59,0.00013728,2]
[407648206,1772610140885,-420.0,0.00013941,2]
[407648207,1772610140909,-1151.0,0.0001398,2]
[407648208,1772610140935,-507.0,0.00014,2]
[407648209,1772610140958,-150.0,0.00014098,2]
[407648210,1772610140984,-700.40287358,0.00014273,2]
[407648211,1772610141008,-239.83950121,0.00014273,2]
[407648212,1772610141031,-331.36472516,0.00014273,2]
[407648213,1772610141056,-195.53936659,0.00014273,2]
[407648214,1772610141080,-1005.50229096,0.00014334,2]
[407648215,1772610141104,-8549.8211581,0.00014363,2]
[407648216,1772610141128,-151.95157194,0.00014363,2]
[407648217,1772610141152,-200.0,0.00014363,2]
[407648218,1772610141176,-151.0,0.00014363,2]
[407648219,1772610141201,-151.0,0.00014363,2]
[407648220,1772610141226,-500.0,0.00014363,2]
[407648221,1772610141249,-151.0,0.00014363,2]
[407648222,1772610141272,-500.0,0.00014363,2]
[407648223,1772610141294,-151.0,0.00014363,2]
[407648224,1772610141316,-500.0,0.00014363,2]
[407648225,1772610141339,-151.0,0.00014363,2]
[407648226,1772610141365,-500.0,0.00014363,2]
[407648227,1772610141395,-151.0,0.00014363,2]
[407648228,1772610141419,-500.0,0.00014363,2]
[407648229,1772610141443,-151.0,0.00014363,2]
[407648230,1772610141478,-151.0,0.00014363,2]
[407648231,1772610141502,-500.0,0.00014363,2]
[407648232,1772610141526,-500.0,0.00014363,2]
[407648233,1772610141550,-151.0,0.00014363,2]
[407648234,1772610141573,-500.0,0.00014363,2]
[407648235,1772610141597,-151.0,0.00014363,2]
[407648236,1772610141622,-500.0,0.00014363,2]
[407648237,1772610141645,-151.0,0.00014363,2]
[407648238,1772610141678,-500.0,0.00014363,2]
[407648239,1772610141707,-151.0,0.0001437,2]
[407648240,1772610141737,-500.0,0.00014372,2]
[407648241,1772610141764,-500.0,0.00014372,2]
[407648242,1772610141791,-500.0,0.00014372,2]
[407648243,1772610141817,-500.0,0.00014372,2]
[407648244,1772610141843,-500.0,0.00014372,2]
[407648245,1772610141867,-500.0,0.00014372,2]
[407648246,1772610141892,-500.0,0.00014372,2]
[407648247,1772610141923,-500.0,0.00014372,2]
[407648248,1772610141950,-500.0,0.00014372,2]
[407648249,1772610141976,-500.0,0.00014372,2]
[407648250,1772610142003,-500.0,0.00014372,2]
[407648251,1772610142031,-500.0,0.00014372,2]
[407648252,1772610142059,-500.0,0.00014372,2]
[407648253,1772610142085,-500.0,0.00014372,2]
[407648254,1772610142112,-500.0,0.00014372,2]
[407648255,1772610142138,-500.0,0.00014372,2]
[407648256,1772610142164,-500.0,0.00014372,2]
[407648257,1772610142193,-500.0,0.00014372,2]
[407648258,1772610142219,-500.0,0.00014372,2]
[407648259,1772610142245,-500.0,0.00014372,2]
[407648260,1772610142272,-500.0,0.00014372,2]
[407648261,1772610142298,-500.0,0.00014372,2]
[407648262,1772610142324,-500.0,0.00014372,2]
[407648263,1772610142350,-500.0,0.00014372,2]
[407648264,1772610142375,-500.0,0.00014372,2]
[407648265,1772610142401,-500.0,0.00014372,2]
[407648266,1772610142427,-500.0,0.00014372,2]
[407648267,1772610142456,-500.0,0.00014372,2]
[407648268,1772610142486,-500.0,0.00014372,2]
[407648269,1772610142514,-218.68877645,0.00014372,2]
[407648270,1772610142539,-500.0,0.00014372,2]
[407648271,1772610142565,-500.0,0.00014372,2]
[407648272,1772610142597,-500.0,0.00014372,2]
[407648273,1772610142623,-500.0,0.00014372,2]
[407648274,1772610142650,-500.0,0.00014372,2]
[407648275,1772610142901,-500.0,0.00014372,2]
[407648276,1772610142928,-500.0,0.00014372,2]
[407648277,1772610142954,-500.0,0.00014372,2]
[407648278,1772610142980,-500.0,0.00014372,2]
[407648279,1772610143005,-500.0,0.00014372,2]
[407648280,1772610143031,-500.0,0.00014372,2]
[407648281,1772610143059,-500.0,0.00014372,2]
[407648282,1772610143085,-500.0,0.00014372,2]
[407648283,1772610143110,-500.0,0.00014372,2]
[407648284,1772610143137,-500.0,0.00014372,2]
[407648285,1772610143164,-500.0,0.00014372,2]
[407648286,1772610143188,-500.0,0.00014372,2]
[407648287,1772610143213,-500.0,0.00014372,2]
[407648288,1772610143238,-500.0,0.00014372,2]
[407648289,1772610143263,-500.0,0.00014372,2]
[407648290,1772610143289,-500.0,0.00014372,2]
[407648291,1772610143315,-500.0,0.00014372,2]
[407648292,1772610143340,-500.0,0.00014372,2]
[407648293,1772610143367,-500.0,0.00014372,2]
[407648294,1772610143393,-500.0,0.00014372,2]
[407648295,1772610143419,-500.0,0.00014372,2]
[407648296,1772610143444,-350.0,0.00014372,2]
[407648297,1772610143469,-500.0,0.00014372,2]
[407648298,1772610143495,-500.0,0.00014372,2]
[407648299,1772610143519,-500.0,0.00014372,2]
[407648300,1772610143546,-500.0,0.00014372,2]
[407648301,1772610143571,-500.0,0.00014372,2]
[407648302,1772610143595,-500.0,0.00014372,2]
[407648303,1772610143619,-500.0,0.00014372,2]
[407648304,1772610143644,-500.0,0.00014372,2]
[407648305,1772610143670,-500.0,0.00014372,2]
[407648306,1772610143699,-500.0,0.00014372,2]
[407648307,1772610143725,-500.0,0.00014372,2]
[407648308,1772610143752,-500.0,0.00014372,2]
[407648309,1772610143778,-400.0,0.00014372,2]
[407648310,1772610143806,-500.0,0.00014372,2]
[407648311,1772610143844,-500.0,0.00014372,2]
[407648312,1772610143869,-536.37836443,0.00014372,2]
[407648313,1772610143894,-500.0,0.00014372,2]
[407648314,1772610143918,-500.0,0.00014372,2]
[407648315,1772610143940,-500.0,0.00014372,2]
[407648316,1772610143967,-500.0,0.00014372,2]
[407648317,1772610143990,-508.87556014,0.00014372,2]
[407648318,1772610144014,-280.41,0.00014372,2]
[407648319,1772610144038,-500.62982044,0.00014373,2]
[407648320,1772610144072,-584135.01516795,0.00014373,2]
[407648321,1772610144378,500.0,9.003e-05,2]
[407648322,1772610144647,500.0,9.003e-05,2]
[407648323,1772610145144,491.08775684,9.003e-05,2]
[407648324,1772610145165,8.91224316,9.003e-05,2]
[407648325,1772610146388,744.74506493,9.003e-05,2]
[407648326,1772610146512,500.0,9.003e-05,2]
[407648327,1772610148868,500.0,9.003e-05,2]
[407648328,1772610306261,155.0,9.003e-05,3]
[407648331,1772610606353,156.0,9.003e-05,3]
[407648348,1772610632250,-469.2394,0.000118,2]
[407648349,1772610632261,-247.0,0.000118,2]
[407648350,1772610632273,-250.0,0.000119,2]
[407648352,1772610632284,-251.16503236,0.00011999,2]
[407648354,1772610632298,-33.83496764,0.00011999,2]
[407648356,1772610632308,-1200.0,0.00011999,2]
[407648357,1772610632320,-10.39170789,0.00012,2]
[407648358,1772610632333,-489.60829211,0.00012,2]
[407648359,1772610632344,-264.28649821,0.00012,2]
[407648360,1772610632357,-235.71350179,0.00012,2]
[407648361,1772610632369,-18.20073657,0.00012,2]
[407648362,1772610632382,-481.79926343,0.00012,2]
[407648363,1772610632394,-500.0,0.00012,2]
[407648364,1772610632405,-500.0,0.00012,2]
[407648365,1772610632415,-500.0,0.00012,2]
[407648366,1772610632426,-500.0,0.00012,2]
[407648367,1772610632435,-269.3417456,0.00012,2]
[407648368,1772610632448,-230.6582544,0.00012,2]
[407648369,1772610632459,-611.35650113,0.00012,2]
[407648370,1772610632470,-500.0,0.00012,2]
[407648371,1772610632480,-500.0,0.00012,2]
[407648372,1772610632491,-833.34,0.00012,2]
[407648373,1772610632502,-500.0,0.00012,2]
[407648374,1772610632517,-284.02510473,0.00012,2]
[407648375,1772610632528,-443.27005909,0.00012,2]
[407648376,1772610632538,-500.0,0.00012,2]
[407648377,1772610632549,-5532.0,0.000124,3]
[407648378,1772610632561,-2775.98709985,0.0001298,2]
[407648379,1772610632572,-250.0,0.0001298,2]
[407648380,1772610632584,-500.0,0.0001309,2]
[407648381,1772610632595,-799.29,0.00013123,2]
[407648382,1772610632607,-1621.0,0.00013199,2]
[407648385,1772610632618,-1038.0,0.00013292,2]
[407648387,1772610632630,-1212.0,0.00013349,2]
[407648391,1772610632640,-227.0,0.00013455,2]
[407648393,1772610632652,-184.8,0.00013503,2]
[407648394,1772610632663,-206.0,0.00013519,2]
[407648395,1772610632675,-5532.0,0.000136,5]
[407648396,1772610632687,-387.5,0.00013608,2]
[407648397,1772610632699,-397.99499663,0.000138,2]
[407648398,1772610632711,-500.0,0.00013899,2]
[407648399,1772610632722,-500.0,0.00013899,2]
[407648400,1772610632733,-500.0,0.00013899,2]
[407648401,1772610632744,-500.0,0.00013899,2]
[407648402,1772610632754,-500.0,0.00013899,2]
[407648403,1772610632763,-500.0,0.00013899,2]
[407648404,1772610632773,-500.0,0.00013899,2]
[407648405,1772610632782,-500.0,0.00013899,2]
[407648406,1772610633034,-500.0,0.00013899,2]
[407648407,1772610633050,-500.0,0.00013899,2]
[407648408,1772610633059,-356.37568668,0.00013899,2]
[407648409,1772610633069,-500.0,0.00013899,2]
[407648410,1772610633079,-500.0,0.00013899,2]
[407648411,1772610633089,-500.0,0.00013899,2]
[407648412,1772610633099,-500.0,0.00013899,2]
[407648413,1772610633108,-500.0,0.00013899,2]
[407648414,1772610633118,-500.0,0.00013899,2]
[407648415,1772610633127,-500.0,0.00013899,2]
[407648416,1772610633136,-500.0,0.00013899,2]
[407648417,1772610633145,-500.0,0.00013899,2]
[407648418,1772610633155,-500.0,0.00013899,2]
[407648419,1772610633164,-500.0,0.00013899,2]
[407648420,1772610633173,-500.0,0.00013899,2]
[407648421,1772610633183,-500.0,0.00013899,2]
[407648422,1772610633195,-500.0,0.00013899,2]
[407648423,1772610633206,-500.0,0.00013899,2]
[407648424,1772610633215,-500.0,0.00013899,2]
[407648425,1772610633224,-500.0,0.00013899,2]
[407648426,1772610633233,-500.0,0.00013899,2]
[407648427,1772610633243,-500.0,0.00013899,2]
[407648428,1772610633252,-500.0,0.00013899,2]
[407648429,1772610633261,-500.0,0.00013899,2]
[407648430,1772610633270,-500.0,0.00013899,2]
[407648431,1772610633279,-150.00000001,0.00013899,2]
[407648432,1772610633289,-500.0,0.00013899,2]
[407648433,1772610633298,-500.0,0.00013899,2]
[407648434,1772610633309,-85088.87413396,0.000139,2]
[407648435,1772610633321,-644.71052742,0.000139,2]
[407648436,1772610633332,-843.33708973,0.000139,2]
[407648437,1772610633343,-26635.02004182,0.000139,2]
[407648438,1772610633355,-9550.77514912,0.000139,2]
[407648439,1772610633371,-100417.51372319,0.000139,2]
[407648440,1772610633383,-2691.37625686,0.000139,2]
[407648441,1772610633396,-2214.77332447,0.000139,2]
[407648450,1772610638403,-968.12794408,0.000139,2]
[407648451,1772610638415,-916.51199559,0.000139,2]
[407648452,1772610638426,-692.39626636,0.000139,2]
[407648453,1772610638437,-3768.8530006,0.000139,2]
[407648454,1772610638449,-118895.01525221,0.000139,2]
[407648455,1772610638524,-10974.67838943,0.000139,2]
[407648456,1772610638536,-514339.9870366,0.000139,2]
[407648457,1772610638673,-1050.0,0.000139,2]
[407648458,1772610638687,-824.00752814,0.000139,2]
[407648459,1772610638698,-1000.0,0.000139,2]
[407648468,1772610640678,-799.99226952,0.000139,2]
[407648469,1772610640834,-404.67904935,0.000139,2]
[407648470,1772610641066,-597.032921,0.000139,2]
[407648471,1772610641308,-5680.0845,0.000139,2]
[407648472,1772610641319,-2094.6244665,0.000139,2]
[407648606,1772610688960,-694664.99999938,0.000139,2]
[407648607,1772610689009,-1418.77739078,0.000139,2]
[407648608,1772610689125,-9664.25934027,0.000139,2]
[407648609,1772610689137,-1183.72033041,0.000139,2]
[407648610,1772610689149,-533.1900028,0.000139,2]
[407648611,1772610689161,-282792.01142012,0.000139,2]
[407648612,1772610689191,-8718.71323979,0.000139,2]
[407648613,1772610689203,-1980.96955014,0.000139,2]
[407648614,1772610690736,-19572.17876928,0.000139,2]
[407648617,1772611115305,598.32,0.0001,2]
[407648618,1772611192889,3240.87579139,9.95e-05,2]
[407648622,1772611537092,1046.409339,0.0001,3]
[407648623,1772611762219,-260.90318403,0.000101,2]
[407648624,1772611762245,-151.21,0.000105,2]
[407648636,1772611831458,-750.18023506,0.00011,2]
[407648637,1772611831471,-1055.11455448,0.00011,2]
[407648638,1772611831480,-240.0,0.00011,2]
[407648639,1772611831490,-500.32857691,0.0001101,2]
[407648640,1772611831500,-1200.0,0.00011109,2]
[407648642,1772611831511,-300.0,0.00011109,2]
[407648644,1772611831520,-250.0,0.0001111,2]
[407648645,1772611831530,-250.0,0.0001111,2]
[407648646,1772611831540,-1334.9724197,0.0001111,2]
[407648647,1772611831551,-585.39195199,0.0001111,2]
[407648648,1772611831571,-2715.74844235,0.0001111,2]
[407648649,1772611831584,-15.2207667,0.0001111,2]
[407648650,1772611831594,-200.0,0.00011167,2]
[407648651,1772611831604,-728.9728333,0.00011507,2]
[407648652,1772611831619,-1558.9071667,0.00011507,2]
[407648653,1772611831629,-766.54322639,0.0001195,2]
[407648654,1772611831642,-500.0,0.00012,2]
[407648655,1772611831652,-500.0,0.00012,2]
[407648656,1772611831662,-1362.4,0.000121,2]
[407648657,1772611831672,-1598.0,0.0001222,2]
[407648658,1772611831682,-500.32857689,0.00012355,2]
[407648659,1772611831692,-166.66,0.00012538,2]
[407648660,1772611831703,-250.0,0.00012596,2]
[407648661,1772611831713,-166.66,0.00012802,2]
[407648662,1772611831723,-166.66,0.00013066,2]
[407648663,1772611831733,-1287.00946758,0.0001311,2]
[407648664,1772611831742,-150.0,0.00013249,2]
[407648665,1772611831752,-2426.68,0.0001325,2]
[407648667,1772611831762,-20729.71,0.0001325,2]
[407648669,1772611831771,-200.0,0.00013306,2]
[407648671,1772611831781,-166.66,0.0001333,2]
[407648673,1772611831791,-9963.64,0.00013388,2]
[407648675,1772611831801,-554.27580926,0.00013451,2]
[407648678,1772611831821,-28.38111779,0.00013451,2]
[407648680,1772611831831,-184.899268,0.00013534,2]
[407648681,1772611831841,-166.66,0.00013594,2]
[407648683,1772611831850,-200.34698847,0.000136,2]
[407648684,1772611831860,-150.0,0.00013677,2]
[407648685,1772611831870,-150.0,0.000137,2]
[407648687,1772611831879,-150.0,0.000137,30]
[407648689,1772611831889,-500.32857689,0.000137,2]
[407648691,1772611831899,-1001.21552028,0.00013799,2]
[407648693,1772611831910,-523.29554904,0.000138,2]
[407648695,1772611831919,-880.9169245,0.000138,2]
[407648696,1772611831929,-1108.5362653,0.000138,2]
[407648697,1772611831939,-993.36568204,0.000138,2]
[407648698,1772611831950,-5963.1473,0.000138,2]
[407648699,1772611831960,-523.70680744,0.000138,2]
[407648700,1772611831972,-357.69219256,0.000138,2]
[407648701,1772611831983,-164.641,0.000138,2]
[407648702,1772611831994,-4358.00155737,0.000138,2]
[407648703,1772611832003,-251.4432,0.000138,2]
[407648704,1772611832013,-150.0,0.00013824,2]
[407648705,1772611832024,-500.0,0.00013824,2]
[407648706,1772611832034,-1863.45240251,0.0001383,2]
[407648707,1772611832046,-2970.96530385,0.0001383,2]
[407648708,1772611832057,-166.66,0.00013858,2]
[407648709,1772611832067,-500.0,0.00013879,2]
[407648710,1772611832077,-200.0,0.00013892,2]
[407648711,1772611832087,-151.0,0.00013892,2]
[407648712,1772611832098,-500.0,0.00013892,2]
[407648713,1772611832108,-151.0,0.00013892,2]
[407648714,1772611832118,-151.0,0.00013892,2]
[407648715,1772611832128,-151.0,0.00013892,2]
[407648716,1772611832137,-151.0,0.00013892,2]
[407648717,1772611832147,-151.0,0.00013892,2]
[407648718,1772611832160,-151.0,0.00013892,2]
[407648719,1772611832169,-151.0,0.00013892,2]
[407648720,1772611832178,-151.0,0.00013892,2]
[407648721,1772611832188,-30.66012402,0.00013892,2]
[407648722,1772611832202,-120.33987598,0.00013892,2]
[407648723,1772611832212,-151.0,0.00013892,2]
[407648724,1772611832222,-156.0,0.000139,3]
[407648725,1772611832233,-19973.7387033,0.000139,2]
[407648726,1772611832242,-170.808032,0.000139,2]
[407648727,1772611832252,-39557.2842657,0.000139,2]
[407648728,1772611832262,-1502.21515879,0.000139,2]
[407648729,1772611832272,-481.67683845,0.000139,2]
[407648730,1772611832282,-1533.29220969,0.000139,2]
[407648731,1772611832291,-614.52527515,0.000139,2]
[407648732,1772611832301,-200.0,0.000139,2]
[407648733,1772611832311,-6086.3574822,0.000139,2]
[407648734,1772611832320,-600.0,0.00013934,2]
[407648735,1772611832330,-507.0,0.00014,2]
[407648736,1772611832339,-500.0,0.00014027,2]
[407648737,1772611832349,-4358.00155728,0.00014256,2]
[407648738,1772611832360,-352.7,0.00014356,2]
[407648739,1772611832371,-150.0,0.00014362,2]
[407648740,1772611832381,-387.5,0.00014364,2]
[407648741,1772611832391,-200.0,0.00014422,2]
[407648742,1772611832401,-200.0,0.0001444,2]
[407648743,1772611832411,-4358.00155728,0.00014711,2]
[407648744,1772611832420,-700.0,0.00014762,2]
[407648745,1772611832430,-799.29,0.00014763,2]
[407648746,1772611832441,-166.67,0.0001482,2]
[407648747,1772611832452,-3240.0,0.00014869,2]
[407648748,1772611832462,-4000.0,0.00014947,2]
[407648749,1772611832472,-1592.19,0.00014977,2]
[407648750,1772611832482,-200.0,0.00014988,2]
[407648751,1772611832492,-250.0,0.00015,2]
[407648752,1772611832503,-360.56,0.00015018,2]
[407648753,1772611832512,-387.5,0.0001512,2]
[407648754,1772611832522,-1000.0,0.00015155,2]
[407648755,1772611832532,-500.0,0.00015165,2]
[407648756,1772611832542,-4358.00155728,0.00015167,2]
[407648757,1772611832552,-500.0,0.00015265,2]
[407648758,1772611832562,-500.0,0.00015265,2]
[407648759,1772611832572,-500.0,0.00015265,2]
[407648760,1772611832582,-500.0,0.00015265,2]
[407648761,1772611832592,-500.0,0.00015265,2]
[407648762,1772611832602,-500.0,0.00015265,2]
[407648763,1772611832611,-500.0,0.00015265,2]
[407648764,1772611832622,-500.0,0.00015265,2]
[407648765,1772611832631,-500.0,0.00015265,2]
[407648766,1772611832641,-500.0,0.00015265,2]
[407648767,1772611832650,-440.45525946,0.00015265,2]
[407648768,1772611832662,-59.54474054,0.00015265,2]
[407648769,1772611832672,-500.0,0.00015265,2]
[407648770,1772611832681,-500.0,0.00015265,2]
[407648771,1772611832691,-194.87334623,0.00015265,2]
[407648772,1772611832702,-305.12665377,0.00015265,2]
[407648773,1772611832711,-4.75976707,0.00015265,2]
[407648774,1772611832723,-495.24023293,0.00015265,2]
[407648775,1772611832732,-500.0,0.00015265,2]
[407648776,1772611832741,-90.5025347,0.00015265,2]
[407648779,1772611837511,-409.4974653,0.00015265,2]
[407648782,1772611837521,-500.0,0.00015265,2]
[407648784,1772611837531,-150.99,0.0001531,2]
[407648785,1772611837541,-608.86,0.0001531,2]
[407648786,1772611837551,-138.51130718,0.0001531,2]
[407648787,1772611837563,-1630.02471236,0.0001531,2]
[407648788,1772611837575,-8231.45398046,0.0001531,2]
[407648789,1772611837584,-233.56,0.0001531,2]
[407648790,1772611837594,-9999.99,0.0001531,2]
[407648791,1772611837603,-150.99,0.0001531,2]
[407648792,1772611837613,-1614.58,0.0001531,2]
[407648793,1772611837623,-299.99,0.0001531,2]
[407648794,1772611837633,-9999.99,0.0001531,2]
[407648795,1772611837643,-4000.0,0.00015321,2]
[407648796,1772611837653,-500.0,0.00015354,2]
[407648797,1772611837663,-39557.2842657,0.00015355,2]
[407648798,1772611837672,-498.44553072,0.00015367,2]
[407648799,1772611837681,-693.3919763,0.00015404,2]
[407648800,1772611837690,-719.04747942,0.00015459,2]
[407648801,1772611837701,-450.32,0.00015505,2]
[407648802,1772611837711,-745.65223616,0.00015514,2]
[407648803,1772611837721,-259.860044,0.00015519,2]
[407648804,1772611837731,-773.2413689,0.00015569,2]
[407648805,1772611837740,-166.67,0.00015593,2]
[407648806,1772611837750,-4358.00155728,0.00015622,2]
[407648807,1772611837760,-801.85129955,0.00015624,2]
[407648808,1772611837770,-6086.3574822,0.00015637,2]
[407648809,1772611837779,-4456.7435156,0.00015662,2]
[407648810,1772611837789,-831.51979763,0.00015679,2]
[407648811,1772611837798,-4000.0,0.00015694,2]
[407648812,1772611837808,-862.28603014,0.00015734,2]
[407648813,1772611837817,-894.19061326,0.00015789,2]
[407648814,1772611837827,-927.27566595,0.00015844,2]
[407648815,1772611837836,-387.5,0.00015876,2]
[407648816,1772611837846,-2000.0,0.0001589,2]
[407648817,1772611837855,-961.58486559,0.00015899,2]
[407648818,1772611837865,-192.64,0.00015933,2]
[407648819,1772611837874,-997.16350561,0.00015954,2]
[407648821,1772611837885,-994.4338943,0.00016055,2]
[407648823,1772611837894,-4000.0,0.00016068,2]
[407648825,1772611837904,-4358.00155728,0.00016078,2]
[407648827,1772611837913,-876.22,0.00016097,2]
[407648829,1772611837923,-36385.3,0.000162,5]
[407648831,1772611837932,-5987.0,0.00016251,2]
[407648833,1772611837942,-2458.0,0.00016251,2]
[407648834,1772611837951,-446.28033982,0.00016265,2]
[407648836,1772611837961,-166.67,0.00016365,2]
[407648839,1772611837970,-619.33,0.00016371,2]
[407648840,1772611837980,-799.29,0.00016404,2]
[407648843,1772611837990,-4000.0,0.00016442,2]
[407648845,1772611837999,-150.0,0.00016461,2]
[407648846,1772611838009,-150.0,0.00016461,2]
[407648848,1772611838018,-150.0,0.00016461,2]
[407648850,1772611838027,-150.128,0.00016461,2]
[407648852,1772611838036,-1341.0,0.00016461,2]
[407648854,1772611838048,-1041.0,0.00016461,2]
[407648878,1772611838275,-619.0,0.00016461,2]
[407648881,1772611838299,-3501.0,0.00016461,2]
[407648883,1772611838309,-1278.0,0.00016461,2]
[407648885,1772611838319,-921.0,0.00016461,2]
[407648887,1772611838328,-1212.0,0.00016461,2]
[407648889,1772611838338,-446.28033982,0.00016499,2]
[407648891,1772611838348,-313.05680291,0.00016532,2]
[407648894,1772611838358,-4358.00155728,0.00016533,2]
[407648896,1772611838368,-387.5,0.00016632,2]
[407648897,1772611838377,-313.05680285,0.00016684,2]
[407648900,1772611838387,-446.28033982,0.00016732,2]
[407648902,1772611838396,-39557.2842657,0.0001681,2]
[407648904,1772611838406,-313.05680285,0.00016836,2]
[407648905,1772611838415,-450.32,0.00016874,2]
[407648908,1772611838424,-634.0,0.00016877,2]
[407648910,1772611838434,-437.89413426,0.00016921,2]
[407648912,1772611838443,-446.28033982,0.00016966,2]
[407648913,1772611838453,-315.74082907,0.00016973,2]
[407648916,1772611838462,-500.0,0.00016973,2]
[407648918,1772611838472,-313.05680285,0.00016988,2]
[407648920,1772611838486,-4531.0,0.00016988,2]
[407648922,1772611838495,-4358.00155728,0.00016989,2]
[407648924,1772611838505,-300.0,0.00017,2]
[407648926,1772611838514,-26512.37211632,0.00017,2]
[407648928,1772611838524,-5936.16124487,0.00017,2]
[407648930,1772611838533,-1000.0,0.0001705,2]
[407648932,1772611838542,-30000.0,0.0001711,2]
[407648934,1772611838551,-313.05680285,0.0001714,2]
[407648936,1772611838563,-446.28033982,0.00017199,2]
[407648938,1772611838573,-313.05680285,0.00017292,2]
[407648940,1772611838582,-6086.3574822,0.00017375,2]
[407648942,1772611838592,-387.5,0.00017388,2]
[407648944,1772611838601,-446.28033982,0.00017433,2]
[407648946,1772611838610,-313.05680285,0.00017444,2]
[407648948,1772611838620,-4358.00155728,0.00017444,2]
[407648950,1772611838629,-200.0,0.00017467,2]
[407648952,1772611838638,-1000.0,0.00017521,2]
[407648954,1772611838647,-313.05680285,0.00017596,2]
[407648956,1772611838658,-258.97981749,0.0001764,2]
[407648958,1772611838667,-446.28033982,0.00017666,2]
[407648960,1772611838676,-313.05680285,0.00017748,2]
[407648962,1772611838686,-500.0,0.00017784,2]
[407648964,1772611838695,-1123.556729,0.00017785,2]
[407648966,1772611838705,-1123.556729,0.00017785,2]
[407648968,1772611838714,-1123.556729,0.00017785,2]
[407648970,1772611838724,-1123.556729,0.00017785,2]
[407648972,1772611838733,-25000.0,0.00017786,3]
[407648974,1772611838743,-25000.0,0.00017794,3]
[407648976,1772611838753,-151.0,0.00017803,2]
[407648978,1772611838763,-250.169132,0.00017803,2]
[407648980,1772611838773,-25000.0,0.00017803,3]
[407648982,1772611838782,-25000.0,0.00017812,3]
[407648984,1772611838791,-25000.0,0.00017821,3]
[407648986,1772611838801,-25000.0,0.0001783,3]
[407648988,1772611838811,-151.0,0.00017838,2]
[407648990,1772611838820,-151.0,0.00017838,2]
[407648992,1772611838830,-151.0,0.00017838,2]
[407648993,1772611838840,-25000.0,0.00017838,3]
[407648994,1772611838850,-152.829,0.00017847,2]
[407648995,1772611838860,-25000.0,0.00017847,3]
[407648996,1772611838870,-25000.0,0.00017856,3]
[407648997,1772611838883,-500.0,0.00017864,2]
[407648998,1772611838892,-25000.0,0.00017865,3]
[407648999,1772611838903,-172.65896273,0.00017865,3]
[407649000,1772611838913,-1123.556729,0.00017865,2]
[407649001,1772611838922,-1123.556729,0.00017865,2]